[Event "17th Paracin Open 2024"]
[Site "Paracin"]
[Date "2024.07.06"]
[Round "5.11"]
[White "Wang, Yanbin"]
[Black "Merkulova, Victoria"]
[Result "1-0"]
[ECO "A58"]
[WhiteElo "2423"]
[BlackElo "1978"]
[Annotator "TA"]
[PlyCount "109"]
[EventDate "2024.07.02"]
[EventType "swiss"]
[EventCountry "SRB"]
[SourceTitle "playchess.com"]
[Source "ChessBase"]
[SourceQuality "1"]
[TimeControl "5400+30"]

{[%evp 9,109,30,56,34,62,50,53,33,27,50,39,0,0,2,31,0,0,-14,-18,-19,-15,-11,0,3,10,0,0,-37,-41,-43,-12,-11,0,-68,0,0,0,-45,16,19,23,0,25,17,60,52,57,55,73,55,52,33,33,33,37,43,70,56,122,94,109,95,235,224,340,347,328,345,343,333,338,344,337,377,377,370,355,278,507,500,571,578,607,586,579,625,588,583,706,689,1029,1014,1002,984,949,922,1459,877,1623,1545,1918,1720]} 1. d4 {[%emt 0:01:05]} Nf6 {[%emt 0:00:09]} 2. c4 {[%emt 0:00:06][%cal Bc2c4,Bc4b5,Bb5a6][%mdl 32]} c5 {[%emt 0:00:12]} 3. d5 {[%emt 0:00:24]} b5 {[%emt 0:00:11]} 4. cxb5 {[%emt 0:00:06]} a6 {[%emt 0:00:09]} 5. bxa6 {[%emt 0:00:09]} g6 {[%emt 0:00:09][%cal Of8g7]} 6. Nc3 {[%emt 0:00:14]} Bg7 {[%emt 0:00:07][%cal Oe8g8]} 7. e4 {[%emt 0:00:26] Strongly threatening e5.} O-O {[%emt 0:00:22][%cal Oe7e6]} 8. Nf3 {[%emt 0:00:24] White is slightly better.} Qa5 {[%emt 0:00:23]} 9. Bd2 {[%emt 0:01:33]} Bxa6 {[%emt 0:00:21]} 10. Bxa6 {[%emt 0:00:29]} Qxa6 {[%emt 0:00:24]} 11. Qe2 {[%emt 0:00:50]} d6 {[%emt 0:01:25]} 12. Bg5 {[%emt 0:04:31]} Nbd7 {[%emt 0:06:17]} 13. Qxa6 {[%emt 0:12:28]} Rxa6 {[%emt 0:00:06]} 14. Ke2 {[%emt 0:00:18]} Rb8 {[%emt 0:00:42][%mdl 1024] Black has compensation.} 15. Rhb1 {[%emt 0:01:49]} Rab6 {[%emt 0:07:39]} 16. b3 {[%emt 0:00:37]} Ne8 {[%emt 0:02:00]} 17. Rc1 {[%emt 0:00:25][%cal Of3d2]} Nc7 {[%emt 0:01:50]} 18. Rab1 {[%emt 0:02:15]} Ra6 {[%emt 0:17:34]} 19. a4 {[%emt 0:01:40]} (19. Bxe7 Re8 20. Bg5 Bxc3 21. Rxc3 Rxe4+ (21... Rxa2+ 22. Kf1 $17) 22. Kf1 Rxa2 $17) 19... Bxc3 {[%emt 0:03:08]} 20. Rxc3 {[%emt 0:00:03][%cal Ob1d1]} f6 {[%emt 0:00:12]} 21. Be3 {[%emt 0:12:01]} ({White should play} 21. Bd2 $11) 21... Rxa4 {[%emt 0:01:17]} ({Better is} 21... f5 $1 $15 22. Rc4 Nb6 (22... fxe4 23. Rxe4 Nxd5 24. Bd2 $15)) 22. bxa4 $11 {[%emt 0:00:18]} Rxb1 {[%emt 0:00:06]} 23. Nd2 {[%emt 0:01:28]} Rb7 {[%emt 0:01:47]} (23... Ra1 $15 24. Rb3 Na8 (24... Rxa4 $2 25. Rb7 $18)) 24. Ra3 $36 {[%emt 0:02:14][%mdl 2048] Black is under pressure.} Kf7 {[%emt 0:03:54]} 25. Nc4 {[%emt 0:01:22]} Nb8 {[%emt 0:04:50]} 26. Bd2 {[%emt 0:01:44]} Ke8 {[%emt 0:07:09]} 27. g4 {[%emt 0:00:11]} Kf7 {[%emt 0:05:09]} 28. Ba5 {[%emt 0:02:37]} Nca6 {[%emt 0:02:38]} 29. Rh3 {[%emt 0:04:19][%cal Oc4d6] [#] Nxd6+! would now be deadly.} Kg8 {[%emt 0:00:53]} 30. Bb6 {[%emt 0:03:21]} Nd7 {[%emt 0:04:21]} 31. a5 {[%emt 0:00:40]} Rb8 {[%emt 0:01:58]} 32. Kd2 {[%emt 0:01:38]} Nf8 {[%emt 0:04:31]} 33. Rf3 {[%emt 0:04:49][%cal Oc4d6] White has more active pieces.} g5 {[%emt 0:02:48]} (33... Nd7 $14) 34. Kc3 {[%emt 0:00:47][%cal Oc4d6]} Nd7 {[%emt 0:02:21]} 35. Kb3 {[%emt 0:00:33]} Rb7 {[%emt 0:00:48] A mistake that costs the game.} (35... Nb4 $16 {was called for.} 36. Rg3 Ra8) 36. Ka4 $18 {[%emt 0:00:12]} Ndb8 {[%emt 0:00:39]} (36... Kg7 {was worth a try.} 37. Rh3 (37. Kb5 Ndb8 $18) 37... Kh8) 37. Ne3 {[%emt 0:01:51]} Nd7 {[%emt 0:00:46]} 38. Kb5 {[%emt 0:00:59]} Ndb8 {[%emt 0:00:23]} 39. Nf5 {[%emt 0:01:06]} Nc7+ {[%emt 0:02:01]} 40. Ka4 {[%emt 0:00:16]} (40. Kc4 Nd7 $18) 40... Nca6 {[%emt 0:00:54]} 41. h4 {[%emt 0:01:09]} (41. Kb5 Nc7+ 42. Kc4 Nd7 $18) 41... gxh4 {[%emt 0:01:02]} 42. Nxh4 {[%emt 0:00:23]} Nd7 {[%emt 0:00:29]} 43. Nf5 {[%emt 0:01:14]} Ndb8 $2 {[%emt 0:02:45] [#]} (43... Nxb6+ 44. axb6 Rxb6) 44. Rb3 {[%emt 0:01:25] White is clearly winning.} Rd7 {[%emt 0:02:04]} 45. f4 {[%emt 0:01:27]} Kf7 {[%emt 0:00:51]} 46. Rh3 {[%emt 0:01:25]} Kg8 {[%emt 0:00:07]} 47. g5 {[%emt 0:01:10]} ({Less strong is} 47. Nh6+ Kf8 48. Kb5 Kg7 $18) 47... fxg5 {[%emt 0:00:21]} 48. Rg3 {[%emt 0:00:06]} Kf7 {[%emt 0:05:09]} 49. Rxg5 {[%emt 0:00:13]} ({Weaker is} 49. fxg5 e6 $18) (49. Kb5 gxf4 50. Rg4 (50. Rg7+ Kf6 $17) 50... f3 $11) 49... Kf6 {[%emt 0:03:24]} 50. Rh5 {[%emt 0:00:25]} Kg6 {[%emt 0:00:10]} 51. Rh6+ {[%emt 0:00:04]} Kf7 {[%emt 0:00:04]} 52. Rxh7+ {[%emt 0:00:05]} Kg6 {[%emt 0:00:20]} 53. Rxe7 {[%emt 0:00:54]} Rxe7 {[%emt 0:00:10]} 54. Nxe7+ {[%emt 0:00:02]} Kf7 {[%emt 0:00:09]} 55. Nc8 {[%emt 0:00:09] Weighted Error Value: White=0.13 (very precise) /Black=0.27 (precise) .  Mistake:       	White=1     	Black=6      Inaccurate:     	White=4     	Black=5      OK:         	White=17    	Black=18     Best:        	White=2     	Black=1} 1-0

[Event "17th Paracin Open 2024"]
[Site "Paracin"]
[Date "2024.07.06"]
[Round "5.12"]
[White "Palczert, Matyas"]
[Black "Agibileg, Uurtsaikh"]
[Result "0-1"]
[ECO "C55"]
[WhiteElo "2346"]
[BlackElo "2441"]
[Annotator "RC"]
[PlyCount "106"]
[EventDate "2024.07.02"]
[EventType "swiss"]
[EventCountry "SRB"]
[SourceTitle "playchess.com"]
[Source "ChessBase"]
[SourceQuality "1"]
[TimeControl "5400+30"]

1. e4 {[%emt 0:00:09]} e5 {[%emt 0:00:17]} 2. Nf3 {[%emt 0:00:08]} Nc6 {[%emt 0:00:16]} 3. Bc4 {[%emt 0:00:22]} Nf6 {[%emt 0:00:32]} 4. d3 {[%emt 0:00:11]} h6 {[%emt 0:00:25]} 5. O-O {[%emt 0:00:23]} d6 {[%emt 0:00:24]} 6. a4 {[%emt 0:00:20]} g6 {[%emt 0:01:06]} 7. Nc3 {[%emt 0:02:16]} Bg7 {[%emt 0:01:26]} 8. h3 {[%emt 0:01:52]} Be6 {[%emt 0:03:52]} 9. Bxe6 {[%emt 0:07:34]} fxe6 {[%emt 0:00:21]} 10. d4 {[%emt 0:01:38]} Qe7 {[%emt 0:11:18]} 11. dxe5 {[%emt 0:05:21]} dxe5 {[%emt 0:00:19]} 12. Qd3 {[%emt 0:05:36]} O-O {[%emt 0:02:49]} 13. Be3 {[%emt 0:01:47]} Nh5 {[%emt 0:00:46]} 14. Nh2 {[%emt 0:10:58]} a6 {[%emt 0:11:49]} 15. Qc4 {[%emt 0:04:31]} Rf7 {[%emt 0:02:12]} 16. Ne2 {[%emt 0:03:49]} Nf4 {[%emt 0:05:10]} 17. Rfe1 {[%emt 0:08:29]} Rd8 {[%emt 0:03:12]} 18. Qb3 {[%emt 0:04:46]} Qb4 {[%emt 0:01:56]} 19. Qxb4 {[%emt 0:02:24]} Nxb4 {[%emt 0:00:21]} 20. Bxf4 {[%emt 0:03:04]} exf4 {[%emt 0:00:51]} 21. c3 {[%emt 0:00:14]} Nd3 {[%emt 0:02:37]} 22. Red1 {[%emt 0:02:29]} Rfd7 {[%emt 0:01:30]} 23. Rab1 {[%emt 0:04:41]} g5 {[%emt 0:02:08]} 24. f3 {[%emt 0:05:04]} Nc5 {[%emt 0:02:52]} 25. Rxd7 {[%emt 0:00:05]} Rxd7 {[%emt 0:00:14]} 26. b3 {[%emt 0:00:15]} Rd2 {[%emt 0:01:53]} 27. Kf1 {[%emt 0:00:30]} Nd3 {[%emt 0:02:02]} 28. Ng4 {[%emt 0:02:54]} Kf7 {[%emt 0:00:13]} 29. c4 {[%emt 0:04:05]} Nb4 {[%emt 0:01:34]} 30. h4 {[%emt 0:03:48]} c5 {[%emt 0:41:05]} 31. h5 {[%emt 0:03:35]} Nc2 {[%emt 0:00:00]} 32. Rc1 {[%emt 0:02:11]} Bb2 {[%emt 0:00:00]} 33. Rb1 {[%emt 0:00:20]} Na3 {[%emt 0:00:00]} 34. Re1 {[%emt 0:00:27]} Kg7 {[%emt 0:00:00]} 35. g3 {[%emt 0:02:25]} e5 {[%emt 0:00:00]} 36. gxf4 {[%emt 0:00:32]} gxf4 {[%emt 0:00:00]} 37. Nf2 {[%emt 0:03:16]} Nc2 {[%emt 0:00:00]} 38. Rb1 {[%emt 0:00:04]} Bd4 {[%emt 0:00:00]} 39. Ng4 {[%emt 0:00:58]} Rd3 {[%emt 0:00:00]} 40. Nxd4 {[%emt 0:01:50]} exd4 {[%emt 0:00:00]} 41. Ke2 {[%emt 0:00:40]} Nb4 {[%emt 0:00:00]} 42. Ne5 {[%emt 0:01:38]} Re3+ {[%emt 0:00:00]} 43. Kd2 {[%emt 0:00:43]} Kf6 {[%emt 0:00:00]} 44. Ng4+ {[%emt 0:02:44]} Kg5 {[%emt 0:00:00]} 45. Nxe3 {[%emt 0:00:13]} fxe3+ {[%emt 0:00:00]} 46. Ke2 {[%emt 0:00:04]} Kf4 {[%emt 0:00:00]} 47. Rg1 {[%emt 0:00:14]} d3+ {[%emt 0:00:00]} 48. Kd1 {[%emt 0:00:08]} Nc2 {[%emt 0:00:00]} 49. Rh1 {[%emt 0:01:21]} Kxf3 {[%emt 0:00:00]} 50. e5 {[%emt 0:01:13]} Kg2 {[%emt 0:00:00]} 51. Re1 {[%emt 0:00:04]} Nxe1 {[%emt 0:00:00]} 52. Kxe1 {[%emt 0:00:05]} d2+ {[%emt 0:00:00]} 53. Ke2 {[%emt 0:00:05]} d1=Q+ {[%emt 0:00:00]} 0-1

[Event "17th Paracin Open 2024"]
[Site "Paracin"]
[Date "2024.07.06"]
[Round "5.13"]
[White "Sasikiran, Krishnan"]
[Black "Averin, Nikolay"]
[Result "1-0"]
[ECO "E04"]
[WhiteElo "2581"]
[BlackElo "2250"]
[Annotator "TA"]
[PlyCount "111"]
[EventDate "2024.07.02"]
[EventType "swiss"]
[EventCountry "SRB"]
[SourceTitle "playchess.com"]
[Source "ChessBase"]
[SourceQuality "1"]
[TimeControl "5400+30"]

{[%evp 10,111,31,30,49,56,95,89,76,93,91,70,80,73,74,48,25,26,23,27,27,18,21,28,28,10,60,49,54,48,42,35,62,70,65,57,46,39,39,27,59,30,43,29,14,14,19,32,78,87,104,115,137,149,153,140,277,95,93,89,72,79,67,47,47,41,33,27,107,110,112,110,112,50,49,0,74,88,80,36,52,19,23,0,256,276,244,274,270,273,230,139,266,248,604,608,1527,606,29975,29976,29976,29974,29982,29982]} 1. d4 {[%emt 0:00:15]} Nf6 {[%emt 0:00:02]} 2. c4 {[%emt 0:00:19]} e6 {[%emt 0:00:01]} 3. Nf3 {[%emt 0:01:09]} d5 {[%emt 0:00:02]} 4. g3 {[%emt 0:00:18]} dxc4 {[%emt 0:00:21]} 5. Bg2 {[%emt 0:00:08]} Nbd7 {[%emt 0:24:19]} 6. O-O {[%emt 0:03:37]} a6 {[%emt 0:01:28]} 7. a4 {[%emt 0:03:34]} c5 {[%emt 0:00:14]} 8. Nbd2 {[%emt 0:06:47]} cxd4 {[%emt 0:14:02] White is better.} 9. Nxc4 {[%emt 0:02:21][%cal Oc1d2]} Bc5 {[%emt 0:00:43]} 10. Nxd4 {[%emt 0:05:50] Strongly threatening Nb3.} Nb6 {[%emt 0:00:59]} 11. Nxb6 {[%emt 0:06:09]} Bxb6 {[%emt 0:00:09]} 12. Nc2 {[%emt 0:02:04]} O-O {[%emt 0:01:25]} 13. Be3 {[%emt 0:03:32]} Bxe3 {[%emt 0:01:57]} 14. Nxe3 {[%emt 0:01:16]} Rb8 {[%emt 0:02:13]} 15. Qb3 {[%emt 0:07:34]} Bd7 {[%emt 0:01:10]} 16. Rfd1 {[%emt 0:02:22]} (16. Bxb7 $2 Qc7 17. Rfd1 h6 $19 (17... Rxb7 $2 18. Qa3 $19) (17... Qxb7 $2 18. Qxb7 Rxb7 19. Nc4 $19)) 16... Qe7 {[%emt 0:00:32]} 17. Rac1 {[%emt 0:04:39]} (17. Bxb7 $2 {is the wrong capture.} Bc8 18. Nc4 Bxb7 $19) 17... Bc6 {[%emt 0:02:59]} 18. Bxc6 $14 {[%emt 0:04:02]} bxc6 {[%emt 0:00:02]} 19. Qc2 {[%emt 0:00:22]} Nd5 {[%emt 0:10:39]} 20. Nc4 {[%emt 0:01:39]} Nb4 {[%emt 0:02:17]} 21. Qe4 {[%emt 0:02:30]} Nd5 {[%emt 0:03:49]} 22. Qe5 {[%emt 0:05:35]} Qb4 {[%emt 0:10:50]} 23. e4 {[%emt 0:04:57]} Nf6 {[%emt 0:15:16]} 24. a5 {[%emt 0:03:20]} h5 {[%emt 0:01:25]} 25. f3 {[%emt 0:03:29]} Rfd8 $1 {[%emt 0:01:31]} 26. Qc3 {[%emt 0:08:19] Rxd8+ is the strong threat.} Rxd1+ {[%emt 0:03:58]} 27. Rxd1 {[%emt 0:00:04]} Qxc3 {[%emt 0:01:04]} (27... Qa4 {looks sharper.} 28. Rd2 Qa1+ 29. Kg2 h4) 28. bxc3 $11 {[%emt 0:00:05][%mdl 4096] Endgame. KRN-KRN} Kf8 {[%emt 0:00:30]} (28... g5 $1 $14) 29. Kf2 $16 {[%emt 0:05:13]} Ke7 {[%emt 0:00:31] [#]} 30. Ne5 $1 {[%emt 0:00:49] Wards off Nd7} Rc8 {[%emt 0:00:04]} 31. Ke3 {[%emt 0:02:06]} Rc7 {[%emt 0:00:38]} 32. Rb1 {[%emt 0:02:16] White has more active pieces.} Kd6 {[%emt 0:00:48]} (32... Nd7 $16 33. Nxd7 Rxd7) 33. Nc4+ $2 {[%emt 0:01:04]} (33. f4 $18 {and the rest is easy.}) 33... Kc5 {[%emt 0:00:18]} 34. Rb4 {[%emt 0:02:13]} Nd7 {[%emt 0:00:25]} 35. f4 {[%emt 0:01:27]} f6 {[%emt 0:00:08]} 36. h3 {[%emt 0:01:15]} g5 {[%emt 0:00:26]} 37. h4 {[%emt 0:01:08]} gxh4 {[%emt 0:00:52]} 38. gxh4 {[%emt 0:00:04]} Nf8 {[%emt 0:00:51]} (38... e5 $11) 39. e5 {[%emt 0:01:17]} fxe5 {[%emt 0:00:29]} ({Stronger than} 39... Nd7 40. Nd2 Kd5 41. Rd4+ Kc5 42. Nb3+ Kb5 43. Rb4#) 40. Nxe5 {[%emt 0:00:55]} Nd7 {[%emt 0:00:28]} 41. Rc4+ {[%emt 0:03:08]} (41. Ke4 $16 {Black must now prevent Nxd7+.} Nf6+ 42. Kf3) 41... Kb5 $1 $14 {[%emt 0:00:00] ...c5 would now be deadly.} 42. Rb4+ {[%emt 0:01:12]} Kc5 $1 {[%emt 0:00:01]} 43. Nd3+ {[%emt 0:00:28]} Kd6 {[%emt 0:00:02]} 44. c4 {[%emt 0:00:32][%cal Oc4c5] Threatens to win with c5+!} Rc8 {[%emt 0:02:00] [#]} 45. c5+ $1 {[%emt 0:01:00]} Kc7 $1 {[%emt 0:00:01]} 46. Ne5 {[%emt 0:00:31]} Nxc5 {[%emt 0:00:58][%mdl 8192] [#]} (46... Nxe5 $11 {and Black stays safe.} 47. fxe5 Rd8) 47. Rb6 $1 $18 {[%emt 0:00:31]} Kd6 {[%emt 0:00:22]} 48. Kd4 {[%emt 0:00:30] Hoping for Nc4+.} Nd7 {[%emt 0:00:36]} 49. Rxa6 {[%emt 0:00:29]} Rc7 {[%emt 0:00:32]} 50. Nc4+ {[%emt 0:00:30]} Ke7 {[%emt 0:00:02]} 51. Ra8 {[%emt 0:00:13]} c5+ $2 {[%emt 0:00:51]} (51... Rb7 52. a6 Rb4) 52. Kd3 {[%emt 0:00:21]} Rc6 {[%emt 0:00:37]} 53. a6 {[%emt 0:00:25]} (53. Ra7 $142 Rc8 54. Ne5 c4+ 55. Kc3 (55. Nxc4 Rf8 $18)) 53... Nb6 {[%emt 0:00:30]} 54. Nxb6 {[%emt 0:00:13] White mates.} Rxb6 {[%emt 0:00:01]} 55. a7 {[%emt 0:00:10]} Ra6 {[%emt 0:00:59]} 56. Rh8 {[%emt 0:00:08] Weighted Error Value: White=0.18 (very precise) /Black=0.42.  Loses game:     	---       	Black=1      Missed win:     	White=1     	---        Mistake:       	White=1     	Black=5      Inaccurate:     	White=4     	Black=5      OK:         	White=14    	Black=15     Best:        	White=4     	Black=7      Strong:       	White=2     	Black=4} 1-0

[Event "17th Paracin Open 2024"]
[Site "Paracin"]
[Date "2024.07.06"]
[Round "5.14"]
[White "Manish Anto Cristiano F"]
[Black "Prohaszka, Peter"]
[Result "1-0"]
[ECO "C84"]
[WhiteElo "2307"]
[BlackElo "2577"]
[Annotator "RC"]
[PlyCount "245"]
[EventDate "2024.07.02"]
[EventType "swiss"]
[EventCountry "SRB"]
[SourceTitle "playchess.com"]
[Source "ChessBase"]
[SourceQuality "1"]
[TimeControl "5400+30"]

1. e4 {[%emt 0:00:04]} e5 {[%emt 0:00:05]} 2. Nf3 {[%emt 0:00:10]} Nc6 {[%emt 0:00:06]} 3. Bb5 {[%emt 0:00:10]} a6 {[%emt 0:00:19]} 4. Ba4 {[%emt 0:00:11]} Nf6 {[%emt 0:00:43]} 5. O-O {[%emt 0:00:14]} Nxe4 {[%emt 0:00:16]} 6. d4 {[%emt 0:00:33]} Be7 {[%emt 0:00:25]} 7. Re1 {[%emt 0:01:06]} b5 {[%emt 0:00:15]} 8. Rxe4 {[%emt 0:01:56]} d5 {[%emt 0:00:15]} 9. Nxe5 {[%emt 0:01:56]} Nxe5 {[%emt 0:00:49]} 10. Rxe5 {[%emt 0:00:15]} bxa4 {[%emt 0:00:05]} 11. Qe2 {[%emt 0:02:29]} Be6 {[%emt 0:01:57]} 12. f4 {[%emt 0:00:59]} Kf8 {[%emt 0:00:58]} 13. f5 {[%emt 0:00:09]} Bd7 {[%emt 0:11:28]} 14. Nc3 {[%emt 0:00:19]} c6 {[%emt 0:43:51]} 15. Nxa4 {[%emt 0:00:39]} f6 {[%emt 0:06:43]} 16. Re3 {[%emt 0:05:39]} Bxf5 {[%emt 0:00:07]} 17. Bd2 {[%emt 0:01:53]} Bd6 {[%emt 0:02:28]} 18. c4 {[%emt 0:09:22]} Kf7 {[%emt 0:06:31]} 19. Re1 {[%emt 0:08:02]} Ra7 {[%emt 0:22:39]} 20. cxd5 {[%emt 0:03:18]} cxd5 {[%emt 0:00:00]} 21. Nc3 {[%emt 0:06:28]} Bf4 {[%emt 0:00:00]} 22. Rf3 {[%emt 0:06:04]} Bxd2 {[%emt 0:00:00]} 23. Qxd2 {[%emt 0:00:48]} Bg6 {[%emt 0:00:00]} 24. Rfe3 {[%emt 0:01:09]} Rf8 {[%emt 0:00:00]} 25. Re6 {[%emt 0:07:41]} Kg8 {[%emt 0:00:00]} 26. Qe2 {[%emt 0:00:39]} a5 {[%emt 0:00:00]} 27. Re7 {[%emt 0:07:53]} Rxe7 {[%emt 0:00:00]} 28. Qxe7 {[%emt 0:00:06]} Bf7 {[%emt 0:00:00]} 29. Qxd8 {[%emt 0:01:20]} Rxd8 {[%emt 0:00:00]} 30. Re7 {[%emt 0:00:09]} Rb8 {[%emt 0:00:00]} 31. Ra7 {[%emt 0:01:20]} g5 {[%emt 0:01:24]} 32. Rxa5 {[%emt 0:01:33]} Rxb2 {[%emt 0:00:08]} 33. a4 {[%emt 0:00:28]} Rd2 {[%emt 0:03:39]} 34. Ra8+ {[%emt 0:00:46]} Kg7 {[%emt 0:00:01]} 35. a5 {[%emt 0:00:31]} Rxd4 {[%emt 0:00:43]} 36. a6 {[%emt 0:04:07]} Rc4 {[%emt 0:00:38]} 37. Nb5 {[%emt 0:00:19]} Rc5 {[%emt 0:01:48]} 38. Rb8 {[%emt 0:02:09]} d4 {[%emt 0:00:01]} 39. Rb7 {[%emt 0:00:56]} d3 {[%emt 0:00:56]} 40. Kf2 {[%emt 0:03:11]} d2 {[%emt 0:00:39]} 41. Ke2 {[%emt 0:00:21]} Rd5 {[%emt 0:00:07]} 42. Kd1 {[%emt 0:01:19]} Kg6 {[%emt 0:00:55]} 43. a7 {[%emt 0:01:45]} Be6 {[%emt 0:00:10]} 44. h3 {[%emt 0:00:37]} Bf5 {[%emt 0:00:48]} 45. Nc3 {[%emt 0:01:59]} Ra5 {[%emt 0:00:03]} 46. Kxd2 {[%emt 0:00:06]} h5 {[%emt 0:00:18]} 47. Re7 {[%emt 0:02:12]} h4 {[%emt 0:00:41]} 48. Nb5 {[%emt 0:00:16]} g4 {[%emt 0:00:49]} 49. Re8 {[%emt 0:01:12]} gxh3 {[%emt 0:00:33]} 50. gxh3 {[%emt 0:00:53]} Bd7 {[%emt 0:00:08]} 51. Rg8+ {[%emt 0:00:10]} Kh6 {[%emt 0:00:42]} 52. Rh8+ {[%emt 0:01:26]} Kg6 {[%emt 0:00:21]} 53. a8=Q {[%emt 0:03:36]} Rxa8 {[%emt 0:00:01]} 54. Rxa8 {[%emt 0:00:06]} Bxb5 {[%emt 0:00:04]} 55. Ra7 {[%emt 0:01:06]} Bc6 {[%emt 0:00:53]} 56. Ke2 {[%emt 0:00:17]} Bg2 {[%emt 0:01:02]} 57. Ra3 {[%emt 0:00:08]} Kg5 {[%emt 0:00:47]} 58. Kf2 {[%emt 0:00:13]} Bc6 {[%emt 0:00:10]} 59. Ra5+ {[%emt 0:02:01]} Kg6 {[%emt 0:00:32]} 60. Ra7 {[%emt 0:00:15]} Be8 {[%emt 0:00:57]} 61. Kf3 {[%emt 0:01:02]} Kg5 {[%emt 0:00:13]} 62. Rg7+ {[%emt 0:00:17]} Bg6 {[%emt 0:00:02]} 63. Rg8 {[%emt 0:00:32]} Kf5 {[%emt 0:00:14]} 64. Ke3 {[%emt 0:00:33]} Kg5 {[%emt 0:00:10]} 65. Kf3 {[%emt 0:00:50]} Kf5 {[%emt 0:00:01]} 66. Kf2 {[%emt 0:00:08]} Kg5 {[%emt 0:01:10]} 67. Ke3 {[%emt 0:00:12]} Kf5 {[%emt 0:01:02]} 68. Kd4 {[%emt 0:00:20]} Bh5 {[%emt 0:00:35]} 69. Rg7 {[%emt 0:01:32]} Bd1 {[%emt 0:00:50]} 70. Ke3 {[%emt 0:00:31]} Bh5 {[%emt 0:00:17]} 71. Rg1 {[%emt 0:00:05]} Bf7 {[%emt 0:00:57]} 72. Rg4 {[%emt 0:00:08]} Be6 {[%emt 0:00:03]} 73. Kf2 {[%emt 0:00:23]} Bd7 {[%emt 0:00:23]} 74. Rxh4 {[%emt 0:00:21]} Kg5 {[%emt 0:00:20]} 75. Kg3 {[%emt 0:00:06]} Be6 {[%emt 0:00:04]} 76. Rh8 {[%emt 0:00:36]} Bf7 {[%emt 0:00:20]} 77. Rf8 {[%emt 0:02:04]} Bb3 {[%emt 0:00:48]} 78. Rb8 {[%emt 0:00:09]} Be6 {[%emt 0:00:10]} 79. Rb5+ {[%emt 0:00:09]} Kg6 {[%emt 0:00:05]} 80. Kh4 {[%emt 0:00:21]} Bd7 {[%emt 0:00:30]} 81. Ra5 {[%emt 0:00:22]} Be6 {[%emt 0:00:06]} 82. Ra1 {[%emt 0:00:10]} Bd7 {[%emt 0:00:22]} 83. Rg1+ {[%emt 0:00:43]} Kh6 {[%emt 0:00:21]} 84. Kg3 {[%emt 0:00:11]} Kg5 {[%emt 0:00:21]} 85. Re1 {[%emt 0:00:29]} Bc8 {[%emt 0:00:18]} 86. Re8 {[%emt 0:00:09]} Bd7 {[%emt 0:00:45]} 87. Rg8+ {[%emt 0:00:18]} Kh5 {[%emt 0:00:30]} 88. h4 {[%emt 0:00:39]} Be6 {[%emt 0:01:36]} 89. Rh8+ {[%emt 0:00:57]} Kg6 {[%emt 0:00:01]} 90. Kf4 {[%emt 0:00:48]} Kg7 {[%emt 0:00:20]} 91. Rh5 {[%emt 0:00:37]} Kg6 {[%emt 0:00:09]} 92. Rc5 {[%emt 0:13:49]} Bd7 93. h5+ {[%emt 0:00:00]} Kh6 {[%emt 0:00:14]} 94. Kg3 {[%emt 0:00:00]} Ba4 {[%emt 0:00:44]} 95. Kh4 {[%emt 0:00:00]} Bd1 {[%emt 0:00:39]} 96. Rf5 {[%emt 0:00:00]} Kg7 {[%emt 0:00:25]} 97. Rf2 {[%emt 0:00:00]} Bb3 {[%emt 0:01:28]} 98. Rg2+ {[%emt 0:00:00]} Kh7 {[%emt 0:01:36]} 99. Rg6 {[%emt 0:00:00]} Bc2 {[%emt 0:00:26]} 100. Rxf6 {[%emt 0:00:00]} Bd3 {[%emt 0:00:23]} 101. Kg5 {[%emt 0:00:00]} Kg7 {[%emt 0:00:50]} 102. Rd6 {[%emt 0:00:00]} Be4 {[%emt 0:00:24]} 103. Rd7+ {[%emt 0:00:00]} Kg8 {[%emt 0:00:20]} 104. Kh6 {[%emt 0:00:00]} Bc2 {[%emt 0:00:47]} 105. Rg7+ {[%emt 0:00:00]} Kf8 {[%emt 0:00:32]} 106. Rg1 {[%emt 0:00:00]} Kf7 {[%emt 0:00:29]} 107. Rc1 {[%emt 0:00:00]} Bd3 {[%emt 0:00:10]} 108. Rc3 {[%emt 0:00:00]} Be4 {[%emt 0:00:23]} 109. Rc4 {[%emt 0:00:00]} Bd3 {[%emt 0:00:14]} 110. Rc1 {[%emt 0:00:00]} Kf8 {[%emt 0:00:30]} 111. Rd1 {[%emt 0:00:00]} Be4 {[%emt 0:00:35]} 112. Rf1+ {[%emt 0:00:00]} Kg8 {[%emt 0:00:05]} 113. Rg1+ {[%emt 0:00:00]} Kh8 {[%emt 0:01:32]} 114. Re1 {[%emt 0:00:00]} Bc6 {[%emt 0:00:51]} 115. Rc1 {[%emt 0:00:00]} Bd5 {[%emt 0:00:23]} 116. Rc8+ {[%emt 0:00:00]} Bg8 {[%emt 0:00:01]} 117. Kg5 {[%emt 0:00:00]} Kg7 {[%emt 0:01:09]} 118. Rc7+ {[%emt 0:00:00]} Kh8 {[%emt 0:00:08]} 119. Kg6 {[%emt 0:00:00]} Bd5 {[%emt 0:01:08]} 120. Rh7+ {[%emt 0:00:00]} Kg8 {[%emt 0:00:02]} 121. Re7 {[%emt 0:00:00]} Kf8 {[%emt 0:00:54]} 122. Rg7 {[%emt 0:00:00]} Be4+ {[%emt 0:00:28]} 123. Kf6 {[%emt 0:00:00]} 1-0